[Event "*** Titled Tuesday Blitz"]
[Site "Chess.com"]
[Date "2020.11.24"]
[Round "6"]
[White "DanielNaroditsky"]
[Black "OK97"]
[Result "1-0"]
[WhiteElo "3018"]
[BlackElo "2785"]
[TimeControl "180+1"]
[EndTime "11:22:38 PST"]
[Termination "DanielNaroditsky won by resignation"]

1. b3 {[%clk 0:03:00]} 1... e5 {[%clk 0:02:56.7]} 2. Bb2 {[%clk 0:03:00.2]} 2...
Nc6 {[%clk 0:02:56.4]} 3. Nf3 {[%clk 0:03:00.9]} 3... e4 {[%clk 0:02:56.6]} 4.
Nd4 {[%clk 0:03:01.1]} 4... Nxd4 {[%clk 0:02:56.9]} 5. Bxd4 {[%clk 0:03:02]}
5... Ne7 {[%clk 0:02:57.1]} 6. e3 {[%clk 0:03:02.7]} 6... d5 {[%clk 0:02:55.9]}
7. d3 {[%clk 0:03:00.6]} 7... Nf5 {[%clk 0:02:51.7]} 8. Bb2 {[%clk 0:03:00.2]}
8... Bb4+ {[%clk 0:02:48.7]} 9. Nd2 {[%clk 0:03:00.2]} 9... d4 {[%clk
0:02:35.9]} 10. a3 {[%clk 0:02:20.7]} 10... Bxd2+ {[%clk 0:02:17.7]} 11. Qxd2
{[%clk 0:02:20.7]} 11... dxe3 {[%clk 0:02:18.1]} 12. fxe3 {[%clk 0:02:21.6]}
12... Qh4+ {[%clk 0:02:03.7]} 13. Qf2 {[%clk 0:02:19]} 13... Qxf2+ {[%clk
0:01:51.2]} 14. Kxf2 {[%clk 0:02:17.9]} 14... exd3 {[%clk 0:01:51]} 15. cxd3
{[%clk 0:02:14]} 15... f6 {[%clk 0:01:47.2]} 16. Rc1 {[%clk 0:02:13.2]} 16... c6
{[%clk 0:01:47.2]} 17. e4 {[%clk 0:02:12]} 17... Nd6 {[%clk 0:01:46]} 18. Be2
{[%clk 0:02:10.8]} 18... Be6 {[%clk 0:01:42.8]} 19. b4 {[%clk 0:02:03.8]} 19...
O-O {[%clk 0:01:43.1]} 20. Rc5 {[%clk 0:01:57.2]} 20... Rad8 {[%clk 0:01:33.2]}
21. Rhc1 {[%clk 0:01:56.3]} 21... Rf7 {[%clk 0:01:19.5]} 22. g4 {[%clk
0:01:55.7]} 22... Rfd7 {[%clk 0:01:16.1]} 23. Ke3 {[%clk 0:01:55.3]} 23... Nb5
{[%clk 0:01:06.1]} 24. g5 {[%clk 0:01:55.9]} 24... fxg5 {[%clk 0:01:03.2]} 25.
Rxg5 {[%clk 0:01:56.8]} 25... Nd4 {[%clk 0:01:02]} 26. Rcg1 {[%clk 0:01:52.4]}
26... g6 {[%clk 0:00:59.7]} 27. Bxd4 {[%clk 0:01:50.2]} 27... Rxd4 {[%clk
0:00:59.6]} 28. h4 {[%clk 0:01:51.1]} 28... Bf7 {[%clk 0:00:46.4]} 29. h5 {[%clk
0:01:51.1]} 29... R4d6 {[%clk 0:00:45.5]} 30. h6 {[%clk 0:01:50.3]} 30... Rf8
{[%clk 0:00:43.6]} 31. a4 {[%clk 0:01:41.9]} 31... a6 {[%clk 0:00:42.6]} 32. b5
{[%clk 0:01:42.2]} 32... axb5 {[%clk 0:00:42.9]} 33. axb5 {[%clk 0:01:43.1]}
33... Ra8 {[%clk 0:00:39.8]} 34. Rf1 {[%clk 0:01:40.5]} 34... Ra5 {[%clk
0:00:36.2]} 35. Re5 {[%clk 0:01:40.5]} 35... Re6 {[%clk 0:00:32.8]} 36. Rxe6
{[%clk 0:01:36.3]} 36... Bxe6 {[%clk 0:00:33.7]} 37. d4 {[%clk 0:01:37.1]} 37...
Ra3+ {[%clk 0:00:28]} 38. Kf4 {[%clk 0:01:37.4]} 38... Ra2 {[%clk 0:00:28.3]}
39. Bf3 {[%clk 0:01:27.1]} 39... Kf7 {[%clk 0:00:19.6]} 40. bxc6 {[%clk
0:01:23.1]} 40... bxc6 {[%clk 0:00:20.4]} 41. Rc1 {[%clk 0:01:23.2]} 41... Ra6
{[%clk 0:00:16.7]} 42. d5 {[%clk 0:01:19.7]} 42... cxd5 {[%clk 0:00:16.1]} 43.
Rc7+ {[%clk 0:01:20.6]} 43... Ke8 {[%clk 0:00:13.1]} 44. Rxh7 {[%clk 0:01:13.4]}
44... dxe4 {[%clk 0:00:13.5]} 45. Bxe4 {[%clk 0:01:10.7]} 45... Ra1 {[%clk
0:00:06]} 46. Bxg6+ {[%clk 0:01:02.6]} 46... Kf8 {[%clk 0:00:06.5]} 47. Rh8+
{[%clk 0:01:01.9]} 47... Ke7 {[%clk 0:00:06.7]} 48. h7 {[%clk 0:01:00.6]} 48...
Rf1+ {[%clk 0:00:06.2]} 49. Ke3 {[%clk 0:00:55.3]} 49... Rh1 {[%clk 0:00:02.8]}
50. Re8+ {[%clk 0:00:45.6]} 50... Kf6 {[%clk 0:00:03.3]} 51. Be4 {[%clk
0:00:46]} 51... Rh3+ {[%clk 0:00:03]} 52. Kd4 {[%clk 0:00:43.8]} 1-0

[Event "*** Titled Tuesday Blitz"]
[Site "Chess.com"]
[Date "2020.11.24"]
[Round "6"]
[White "kleopl"]
[Black "ExtremeLearner"]
[Result "1-0"]
[WhiteElo "2520"]
[BlackElo "2382"]
[TimeControl "180+1"]
[EndTime "11:22:39 PST"]
[Termination "kleopl won by resignation"]

1. c4 {[%clk 0:03:00.9]} 1... e6 {[%clk 0:02:56.6]} 2. Nc3 {[%clk 0:02:59.6]}
2... d5 {[%clk 0:02:56.3]} 3. d4 {[%clk 0:02:59.2]} 3... Nf6 {[%clk 0:02:53.5]}
4. cxd5 {[%clk 0:02:59.2]} 4... exd5 {[%clk 0:02:50.9]} 5. Bg5 {[%clk
0:02:58.6]} 5... Be7 {[%clk 0:02:50.1]} 6. e3 {[%clk 0:02:58.7]} 6... O-O {[%clk
0:02:49.4]} 7. Bd3 {[%clk 0:02:58.7]} 7... Nbd7 {[%clk 0:02:48.1]} 8. Nf3 {[%clk
0:02:57.7]} 8... Re8 {[%clk 0:02:47.7]} 9. O-O {[%clk 0:02:57.7]} 9... Nf8
{[%clk 0:02:45.8]} 10. Bxf6 {[%clk 0:02:52.8]} 10... Bxf6 {[%clk 0:02:45.3]} 11.
b4 {[%clk 0:02:52.2]} 11... Bg4 {[%clk 0:02:39.8]} 12. Qb3 {[%clk 0:02:47.1]}
12... c6 {[%clk 0:02:36.8]} 13. b5 {[%clk 0:02:38.8]} 13... Qd7 {[%clk
0:02:30.1]} 14. bxc6 {[%clk 0:02:37.5]} 14... bxc6 {[%clk 0:02:31]} 15. Nd2
{[%clk 0:02:28.2]} 15... Reb8 {[%clk 0:02:19.8]} 16. Qa3 {[%clk 0:02:21.2]}
16... Be7 {[%clk 0:02:04.8]} 17. Qc1 {[%clk 0:02:20.5]} 17... Bd6 {[%clk
0:01:59.1]} 18. Na4 {[%clk 0:02:13.8]} 18... Qe6 {[%clk 0:01:47.4]} 19. Re1
{[%clk 0:01:54.1]} 19... Qh6 {[%clk 0:01:44.3]} 20. g3 {[%clk 0:01:47.4]} 20...
Ne6 {[%clk 0:01:36.3]} 21. Bf1 {[%clk 0:01:43.8]} 21... Ng5 {[%clk 0:01:34.8]}
22. Nc5 {[%clk 0:01:37]} 22... Nf3+ {[%clk 0:01:19.1]} 23. Nxf3 {[%clk
0:01:36.2]} 23... Bxf3 {[%clk 0:01:20]} 24. Bg2 {[%clk 0:01:31.7]} 24... Bxg2
{[%clk 0:01:16.8]} 25. Kxg2 {[%clk 0:01:32.6]} 25... Bxc5 {[%clk 0:01:13.1]} 26.
Qxc5 {[%clk 0:01:31.8]} 26... Rb6 {[%clk 0:01:12.2]} 27. Rec1 {[%clk 0:01:26]}
27... Qe6 {[%clk 0:01:09.9]} 28. Rc2 {[%clk 0:01:23.6]} 28... Rab8 {[%clk
0:01:08.8]} 29. Rac1 {[%clk 0:01:22.8]} 29... h5 {[%clk 0:01:04.4]} 30. h4
{[%clk 0:01:18.8]} 30... Qe4+ {[%clk 0:01:01.8]} 31. Kg1 {[%clk 0:01:17.9]}
31... g6 {[%clk 0:00:57.3]} 32. Qa5 {[%clk 0:01:12]} 32... R8b7 {[%clk
0:00:39.4]} 33. Qa4 {[%clk 0:01:02]} 33... Qe6 {[%clk 0:00:31]} 34. Rxc6 {[%clk
0:00:52.3]} 34... Rxc6 {[%clk 0:00:28.2]} 35. Qxc6 {[%clk 0:00:51.5]} 35... Qxc6
{[%clk 0:00:25.5]} 36. Rxc6 {[%clk 0:00:52.4]} 36... Rb1+ {[%clk 0:00:21.6]} 37.
Kg2 {[%clk 0:00:52.4]} 37... Rb2 {[%clk 0:00:19.9]} 38. Ra6 {[%clk 0:00:52.4]}
38... Rb7 {[%clk 0:00:20.1]} 39. a4 {[%clk 0:00:50]} 39... Rd7 {[%clk
0:00:18.1]} 40. Kf3 {[%clk 0:00:48.4]} 40... Kg7 {[%clk 0:00:18.4]} 41. Kf4
{[%clk 0:00:48.6]} 41... f6 {[%clk 0:00:17.3]} 42. g4 {[%clk 0:00:47.7]} 42...
hxg4 {[%clk 0:00:14]} 43. Kxg4 {[%clk 0:00:48.6]} 43... Kf7 {[%clk 0:00:11.7]}
44. h5 {[%clk 0:00:48.8]} 44... gxh5+ {[%clk 0:00:11.4]} 45. Kxh5 {[%clk
0:00:49.7]} 45... Re7 {[%clk 0:00:10]} 46. Kg4 {[%clk 0:00:48.3]} 46... Kg6
{[%clk 0:00:07.8]} 47. Kf4 {[%clk 0:00:47.7]} 47... Rd7 {[%clk 0:00:07.5]} 48.
a5 {[%clk 0:00:47.1]} 48... Re7 {[%clk 0:00:06.9]} 49. Rd6 {[%clk 0:00:46.9]}
49... Re4+ {[%clk 0:00:06.9]} 50. Kf3 {[%clk 0:00:47]} 1-0

[Event "*** Titled Tuesday Blitz"]
[Site "Chess.com"]
[Date "2020.11.24"]
[Round "6"]
[White "ShahMatKanal"]
[Black "ChessQueen"]
[Result "0-1"]
[WhiteElo "2507"]
[BlackElo "2736"]
[TimeControl "180+1"]
[EndTime "11:22:42 PST"]
[Termination "ChessQueen won on time"]

1. Nf3 {[%clk 0:03:00.9]} 1... Nf6 {[%clk 0:02:59.5]} 2. c4 {[%clk 0:02:59.5]}
2... e6 {[%clk 0:02:55.9]} 3. e3 {[%clk 0:02:57.8]} 3... d5 {[%clk 0:02:52.5]}
4. b3 {[%clk 0:02:54.2]} 4... b6 {[%clk 0:02:52.3]} 5. Bb2 {[%clk 0:02:54.3]}
5... Bb7 {[%clk 0:02:52.8]} 6. Be2 {[%clk 0:02:53.9]} 6... Be7 {[%clk
0:02:52.4]} 7. O-O {[%clk 0:02:53.1]} 7... O-O {[%clk 0:02:52.5]} 8. Qc2 {[%clk
0:02:52.6]} 8... c5 {[%clk 0:02:49.2]} 9. a3 {[%clk 0:02:47.3]} 9... Nc6 {[%clk
0:02:47.2]} 10. cxd5 {[%clk 0:02:46]} 10... Qxd5 {[%clk 0:02:43.5]} 11. Nc3
{[%clk 0:02:41.8]} 11... Qh5 {[%clk 0:02:35.3]} 12. Ne4 {[%clk 0:01:51.9]} 12...
Nxe4 {[%clk 0:02:14.1]} 13. Qxe4 {[%clk 0:01:51.1]} 13... Qg6 {[%clk 0:02:13.3]}
14. Qxg6 {[%clk 0:01:38]} 14... hxg6 {[%clk 0:02:13.1]} 15. d4 {[%clk
0:01:37.8]} 15... Na5 {[%clk 0:02:08.7]} 16. Nd2 {[%clk 0:01:15.7]} 16... Bd5
{[%clk 0:02:05.4]} 17. dxc5 {[%clk 0:01:11.2]} 17... bxc5 {[%clk 0:01:59.4]} 18.
Bc4 {[%clk 0:00:56.4]} 18... Rab8 {[%clk 0:01:55.7]} 19. Bxd5 {[%clk 0:00:46]}
19... exd5 {[%clk 0:01:55.4]} 20. b4 {[%clk 0:00:45.1]} 20... cxb4 {[%clk
0:01:51.8]} 21. axb4 {[%clk 0:00:43.5]} 21... Bxb4 {[%clk 0:01:51.8]} 22. Nf3
{[%clk 0:00:40.8]} 22... Nc4 {[%clk 0:01:51.8]} 23. Bd4 {[%clk 0:00:39.9]} 23...
a5 {[%clk 0:01:51.1]} 24. Rfd1 {[%clk 0:00:36.6]} 24... f6 {[%clk 0:01:47.9]}
25. Ba7 {[%clk 0:00:33]} 25... Rb7 {[%clk 0:01:47.1]} 26. Bd4 {[%clk 0:00:29.8]}
26... Ra8 {[%clk 0:01:39.4]} 27. Ra4 {[%clk 0:00:27.9]} 27... Kf7 {[%clk
0:01:37.3]} 28. Ba1 {[%clk 0:00:27.1]} 28... Nb6 {[%clk 0:01:29.3]} 29. Ra2
{[%clk 0:00:25.9]} 29... a4 {[%clk 0:01:27.5]} 30. Nd4 {[%clk 0:00:25.2]} 30...
a3 {[%clk 0:01:24.4]} 31. Rb1 {[%clk 0:00:19.7]} 31... Bc5 {[%clk 0:01:00.6]}
32. Nc2 {[%clk 0:00:19.7]} 32... Raa7 {[%clk 0:00:53.9]} 33. Bd4 {[%clk
0:00:14.1]} 33... Bxd4 {[%clk 0:00:51]} 34. exd4 {[%clk 0:00:11.8]} 34... Nc4
{[%clk 0:00:50.7]} 35. Rba1 {[%clk 0:00:07.4]} 35... Rb3 {[%clk 0:00:50.1]} 36.
Kf1 {[%clk 0:00:06.9]} 36... g5 {[%clk 0:00:48]} 37. h3 {[%clk 0:00:06.7]} 37...
Ke6 {[%clk 0:00:48.2]} 38. Ke2 {[%clk 0:00:06.1]} 38... Kd6 {[%clk 0:00:48.6]}
39. Kd1 {[%clk 0:00:04.7]} 39... f5 {[%clk 0:00:37]} 40. g3 {[%clk 0:00:04.1]}
40... f4 {[%clk 0:00:36.4]} 41. gxf4 {[%clk 0:00:02.9]} 41... gxf4 {[%clk
0:00:37.3]} 42. h4 {[%clk 0:00:02.8]} 42... g6 {[%clk 0:00:36.7]} 43. Ke2 {[%clk
0:00:02.7]} 43... Ke6 {[%clk 0:00:34.3]} 44. Rg1 {[%clk 0:00:02.5]} 44... Kf6
{[%clk 0:00:30.3]} 45. Rga1 {[%clk 0:00:01.9]} 45... Rb2 {[%clk 0:00:28.3]} 0-1

[Event "*** Titled Tuesday Blitz"]
[Site "Chess.com"]
[Date "2020.11.24"]
[Round "6"]
[White "Itk04"]
[Black "Chernov_Mikhail"]
[Result "0-1"]
[WhiteElo "2453"]
[BlackElo "2340"]
[TimeControl "180+1"]
[EndTime "11:22:43 PST"]
[Termination "Chernov_Mikhail won on time"]

1. d4 {[%clk 0:03:00.9]} 1... d5 {[%clk 0:02:57.6]} 2. c4 {[%clk 0:03:01.3]}
2... Nc6 {[%clk 0:02:57.6]} 3. Nf3 {[%clk 0:02:59.7]} 3... Bg4 {[%clk
0:02:57.2]} 4. e3 {[%clk 0:02:59.1]} 4... e6 {[%clk 0:02:57.2]} 5. Nc3 {[%clk
0:02:58]} 5... Bb4 {[%clk 0:02:57.2]} 6. Bd2 {[%clk 0:02:56.4]} 6... Nf6 {[%clk
0:02:56.7]} 7. cxd5 {[%clk 0:02:37.5]} 7... exd5 {[%clk 0:02:57.6]} 8. Bb5
{[%clk 0:02:37.3]} 8... O-O {[%clk 0:02:57.4]} 9. O-O {[%clk 0:02:35.5]} 9...
Ne7 {[%clk 0:02:50.9]} 10. a3 {[%clk 0:02:32.3]} 10... Bd6 {[%clk 0:02:42.9]}
11. Be2 {[%clk 0:02:27]} 11... Ng6 {[%clk 0:02:33.7]} 12. h3 {[%clk 0:02:24.9]}
12... Bxf3 {[%clk 0:02:16.8]} 13. Bxf3 {[%clk 0:02:24.8]} 13... c6 {[%clk
0:02:17.7]} 14. b4 {[%clk 0:02:06.6]} 14... a6 {[%clk 0:02:16.5]} 15. Na4 {[%clk
0:02:03.3]} 15... Ne4 {[%clk 0:02:09]} 16. Nc5 {[%clk 0:01:45.2]} 16... Qe7
{[%clk 0:01:58.2]} 17. Qc2 {[%clk 0:01:20.1]} 17... f5 {[%clk 0:01:53.4]} 18. a4
{[%clk 0:01:16.2]} 18... Nh4 {[%clk 0:01:39.6]} 19. Be2 {[%clk 0:00:46.7]} 19...
Qg5 {[%clk 0:01:33.1]} 20. g4 {[%clk 0:00:25.1]} 20... fxg4 {[%clk 0:01:12]} 21.
Nxe4 {[%clk 0:00:17.8]} 21... dxe4 {[%clk 0:01:12.9]} 22. hxg4 {[%clk
0:00:13.5]} 22... Nf3+ {[%clk 0:00:56.3]} 23. Bxf3 {[%clk 0:00:10.8]} 23... Qh4
{[%clk 0:00:36.8]} 24. Rfc1 {[%clk 0:00:02.8]} 24... Qh2+ {[%clk 0:00:30.5]} 25.
Kf1 {[%clk 0:00:02.7]} 25... exf3 {[%clk 0:00:31.4]} 26. Qc4+ {[%clk 0:00:01.2]}
26... Kh8 {[%clk 0:00:31.1]} 27. Ke1 {[%clk 0:00:02.1]} 27... Rae8 {[%clk
0:00:18.8]} 28. Qf1 {[%clk 0:00:03]} 28... Re4 {[%clk 0:00:10.6]} 29. Kd1 {[%clk
0:00:03.3]} 29... Qh6 {[%clk 0:00:09.4]} 30. Kc2 {[%clk 0:00:03.5]} 30... Qe6
{[%clk 0:00:09.9]} 31. Qd3 {[%clk 0:00:02.8]} 31... Qe7 {[%clk 0:00:09.4]} 32.
Rab1 {[%clk 0:00:02.3]} 32... Re8 {[%clk 0:00:09.7]} 33. Rh1 {[%clk 0:00:02.4]}
33... Kg8 {[%clk 0:00:08.1]} 34. Rh3 {[%clk 0:00:02.6]} 34... a5 {[%clk
0:00:07]} 35. bxa5 {[%clk 0:00:01.3]} 35... c5 {[%clk 0:00:07.2]} 36. Rbh1
{[%clk 0:00:01.4]} 36... cxd4 {[%clk 0:00:06.9]} 0-1

[Event "*** Titled Tuesday Blitz"]
[Site "Chess.com"]
[Date "2020.11.24"]
[Round "6"]
[White "mortngabriel"]
[Black "Savagelittlemole"]
[Result "1/2-1/2"]
[WhiteElo "2355"]
[BlackElo "2559"]
[TimeControl "180+1"]
[EndTime "11:22:44 PST"]
[Termination "Game drawn by repetition"]

1. d3 {[%clk 0:02:59.4]} 1... e5 {[%clk 0:02:59.1]} 2. Nf3 {[%clk 0:02:58.3]}
2... Nc6 {[%clk 0:02:58.2]} 3. e4 {[%clk 0:02:56.2]} 3... Nf6 {[%clk 0:02:56]}
4. g3 {[%clk 0:02:55.4]} 4... Bc5 {[%clk 0:02:55.4]} 5. Bg2 {[%clk 0:02:54.6]}
5... O-O {[%clk 0:02:55.3]} 6. O-O {[%clk 0:02:54.3]} 6... d5 {[%clk 0:02:52.3]}
7. exd5 {[%clk 0:02:53.9]} 7... Nxd5 {[%clk 0:02:53.2]} 8. Re1 {[%clk
0:02:52.4]} 8... Re8 {[%clk 0:02:48]} 9. Nc3 {[%clk 0:02:52]} 9... Nxc3 {[%clk
0:02:47.5]} 10. bxc3 {[%clk 0:02:52.5]} 10... Bg4 {[%clk 0:02:42.3]} 11. Rb1
{[%clk 0:02:48.2]} 11... Rb8 {[%clk 0:02:39.6]} 12. h3 {[%clk 0:02:30.1]} 12...
Bh5 {[%clk 0:02:34.2]} 13. Be3 {[%clk 0:02:26.3]} 13... Bxe3 {[%clk 0:02:32.6]}
14. Rxe3 {[%clk 0:02:24.7]} 14... Qd6 {[%clk 0:02:30.8]} 15. Qe1 {[%clk
0:02:15.1]} 15... Bxf3 {[%clk 0:02:27.6]} 16. Bxf3 {[%clk 0:02:14]} 16... f6
{[%clk 0:02:25.8]} 17. d4 {[%clk 0:02:12.2]} 17... b6 {[%clk 0:01:41.8]} 18.
Bxc6 {[%clk 0:02:07.3]} 18... Qxc6 {[%clk 0:01:42.7]} 19. dxe5 {[%clk
0:02:08.1]} 19... Rxe5 {[%clk 0:01:40]} 20. Rxe5 {[%clk 0:02:09]} 20... fxe5
{[%clk 0:01:40.9]} 21. Qxe5 {[%clk 0:02:09.9]} 21... Re8 {[%clk 0:01:41.4]} 22.
Qd4 {[%clk 0:02:07.3]} 22... h6 {[%clk 0:01:31.6]} 23. Rd1 {[%clk 0:02:03.2]}
23... Qg6 {[%clk 0:01:21.5]} 24. Qc4+ {[%clk 0:01:52.8]} 24... Kh7 {[%clk
0:01:20.2]} 25. Qxc7 {[%clk 0:01:41.9]} 25... Qxc2 {[%clk 0:01:19.9]} 26. Qd7
{[%clk 0:01:21.7]} 26... Re2 {[%clk 0:01:18.6]} 27. Rf1 {[%clk 0:00:44.6]} 27...
a5 {[%clk 0:01:17.2]} 28. Qb5 {[%clk 0:00:35.4]} 28... Rd2 {[%clk 0:00:47.7]}
29. Qxb6 {[%clk 0:00:27.3]} 29... Qxc3 {[%clk 0:00:48]} 30. Qe6 {[%clk
0:00:22.2]} 30... Qd3 {[%clk 0:00:42.5]} 31. a4 {[%clk 0:00:20.5]} 31... Rd1
{[%clk 0:00:34]} 32. Rxd1 {[%clk 0:00:20.1]} 32... Qxd1+ {[%clk 0:00:34.9]} 33.
Kg2 {[%clk 0:00:20.8]} 33... Qxa4 {[%clk 0:00:35.5]} 34. Qf5+ {[%clk 0:00:20.2]}
34... Kg8 {[%clk 0:00:35.8]} 35. Qe6+ {[%clk 0:00:20.5]} 35... Kf8 {[%clk
0:00:35.4]} 36. Qd6+ {[%clk 0:00:20.2]} 36... Kf7 {[%clk 0:00:35.3]} 37. Qd5+
{[%clk 0:00:19.4]} 37... Kf6 {[%clk 0:00:34.9]} 38. Qd6+ {[%clk 0:00:18.8]}
38... Kf7 {[%clk 0:00:28.8]} 39. Qd5+ {[%clk 0:00:19.1]} 39... Ke8 {[%clk
0:00:27.6]} 40. Qe6+ {[%clk 0:00:18.6]} 40... Kf8 {[%clk 0:00:16.2]} 41. Qd6+
{[%clk 0:00:18.8]} 41... Kg8 {[%clk 0:00:15.3]} 42. Qe6+ {[%clk 0:00:18.8]}
42... Kh8 {[%clk 0:00:12.4]} 43. Qc8+ {[%clk 0:00:18.5]} 43... Kh7 {[%clk
0:00:12.9]} 44. Qf5+ {[%clk 0:00:19.2]} 44... Kg8 {[%clk 0:00:13.4]} 45. Qe6+
{[%clk 0:00:19.2]} 1/2-1/2

[Event "*** Titled Tuesday Blitz"]
[Site "Chess.com"]
[Date "2020.11.24"]
[Round "6"]
[White "Training_Day"]
[Black "canary2016"]
[Result "1-0"]
[WhiteElo "2347"]
[BlackElo "1977"]
[TimeControl "180+1"]
[EndTime "11:22:44 PST"]
[Termination "Training_Day won by checkmate"]

1. e4 {[%clk 0:03:00.9]} 1... e5 {[%clk 0:02:58.7]} 2. Nf3 {[%clk 0:03:00.3]}
2... Nf6 {[%clk 0:02:58.9]} 3. Nc3 {[%clk 0:02:59.9]} 3... Bb4 {[%clk
0:02:57.8]} 4. Bd3 {[%clk 0:02:49.9]} 4... d6 {[%clk 0:02:54.5]} 5. a3 {[%clk
0:02:48.7]} 5... Bc5 {[%clk 0:02:52.9]} 6. O-O {[%clk 0:02:48.5]} 6... O-O
{[%clk 0:02:52.1]} 7. h3 {[%clk 0:02:47.5]} 7... Be6 {[%clk 0:02:49.5]} 8. Re1
{[%clk 0:02:47.4]} 8... Nc6 {[%clk 0:02:45.7]} 9. Na4 {[%clk 0:02:37]} 9... Bb6
{[%clk 0:02:37.9]} 10. Nxb6 {[%clk 0:02:34]} 10... axb6 {[%clk 0:02:37.2]} 11.
Bf1 {[%clk 0:02:34.5]} 11... Nd7 {[%clk 0:02:22.2]} 12. d4 {[%clk 0:02:32.6]}
12... exd4 {[%clk 0:02:17.3]} 13. Nxd4 {[%clk 0:02:33.5]} 13... Nc5 {[%clk
0:02:08.4]} 14. g3 {[%clk 0:02:05.7]} 14... Qf6 {[%clk 0:02:04.4]} 15. Nxc6
{[%clk 0:02:03.4]} 15... bxc6 {[%clk 0:02:03.4]} 16. Bg2 {[%clk 0:02:03.9]}
16... Qe7 {[%clk 0:01:51.7]} 17. Be3 {[%clk 0:01:58.5]} 17... Nd7 {[%clk
0:01:47.4]} 18. f4 {[%clk 0:01:54]} 18... Nf6 {[%clk 0:01:44.5]} 19. Kh2 {[%clk
0:01:51.9]} 19... Rad8 {[%clk 0:01:40.1]} 20. Bd4 {[%clk 0:01:45]} 20... Rfe8
{[%clk 0:01:29.2]} 21. Bc3 {[%clk 0:01:29.9]} 21... Bd7 {[%clk 0:01:20.4]} 22.
Qd2 {[%clk 0:01:15.8]} 22... h6 {[%clk 0:01:13.9]} 23. e5 {[%clk 0:01:14.1]}
23... Nh7 {[%clk 0:01:07.1]} 24. exd6 {[%clk 0:01:10]} 24... Qxd6 {[%clk
0:01:05.6]} 25. Rxe8+ {[%clk 0:01:03.1]} 25... Rxe8 {[%clk 0:01:03.2]} 26. Rd1
{[%clk 0:01:03]} 26... Re6 {[%clk 0:00:37.1]} 27. Be5 {[%clk 0:00:58.3]} 27...
Qxd2 {[%clk 0:00:14.6]} 28. Rxd2 {[%clk 0:00:59.2]} 28... Nf8 {[%clk 0:00:09.1]}
29. Bxc7 {[%clk 0:00:57.1]} 29... b5 {[%clk 0:00:08.4]} 30. b3 {[%clk
0:00:46.4]} 30... Re3 {[%clk 0:00:07.9]} 31. Bb6 {[%clk 0:00:43.7]} 31... Rc3
{[%clk 0:00:07.3]} 32. Bd4 {[%clk 0:00:41.9]} 32... Rc5 {[%clk 0:00:01.4]} 33.
Bxc5 {[%clk 0:00:41.8]} 33... Ne6 {[%clk 0:00:01.9]} 34. Rxd7 {[%clk 0:00:39.9]}
34... Nxc5 {[%clk 0:00:01.8]} 35. Rc7 {[%clk 0:00:38]} 35... Ne6 {[%clk
0:00:01.7]} 36. Rxc6 {[%clk 0:00:37.6]} 36... Nd4 {[%clk 0:00:02.6]} 37. Rc8+
{[%clk 0:00:35.5]} 37... Kh7 {[%clk 0:00:02.2]} 38. a4 {[%clk 0:00:34.8]} 38...
bxa4 {[%clk 0:00:01.9]} 39. bxa4 {[%clk 0:00:35.7]} 39... Ne2 {[%clk 0:00:01.4]}
40. a5 {[%clk 0:00:35.5]} 40... Nd4 {[%clk 0:00:01.2]} 41. a6 {[%clk 0:00:35.5]}
41... Nb5 {[%clk 0:00:01.2]} 42. Bf1 {[%clk 0:00:32.4]} 42... Na7 {[%clk
0:00:02.1]} 43. Rc7 {[%clk 0:00:32.2]} 43... Nb5 {[%clk 0:00:02.1]} 44. Bxb5
{[%clk 0:00:31.2]} 44... g5 {[%clk 0:00:01.3]} 45. a7 {[%clk 0:00:29.8]} 45...
Kh8 {[%clk 0:00:01.7]} 46. a8=Q+ {[%clk 0:00:29.8]} 46... Kh7 {[%clk 0:00:02.6]}
47. Bd3+ {[%clk 0:00:28]} 47... Kg7 {[%clk 0:00:02.5]} 48. Qa1+ {[%clk
0:00:27.7]} 48... Kf8 {[%clk 0:00:02]} 49. Qh8# {[%clk 0:00:27]} 1-0

[Event "*** Titled Tuesday Blitz"]
[Site "Chess.com"]
[Date "2020.11.24"]
[Round "6"]
[White "romulocardoso"]
[Black "Escanor89"]
[Result "0-1"]
[WhiteElo "2141"]
[BlackElo "2525"]
[TimeControl "180+1"]
[EndTime "11:22:46 PST"]
[Termination "Escanor89 won on time"]

1. e4 {[%clk 0:03:00.9]} 1... c5 {[%clk 0:02:59.5]} 2. Nf3 {[%clk 0:03:01.1]}
2... d6 {[%clk 0:02:59.5]} 3. d4 {[%clk 0:03:01.4]} 3... cxd4 {[%clk 0:02:59.7]}
4. Nxd4 {[%clk 0:03:02.3]} 4... Nf6 {[%clk 0:03:00.2]} 5. Nc3 {[%clk 0:03:02.5]}
5... a6 {[%clk 0:02:58.6]} 6. Be2 {[%clk 0:03:02.1]} 6... e5 {[%clk 0:02:57.8]}
7. Nb3 {[%clk 0:03:01.9]} 7... Be7 {[%clk 0:02:57.3]} 8. O-O {[%clk 0:03:02]}
8... O-O {[%clk 0:02:57.1]} 9. Be3 {[%clk 0:03:01.9]} 9... Be6 {[%clk
0:02:56.8]} 10. Kh1 {[%clk 0:03:00.6]} 10... b5 {[%clk 0:02:54.6]} 11. f4 {[%clk
0:02:58.2]} 11... Qc7 {[%clk 0:02:46.6]} 12. Bf3 {[%clk 0:02:57.4]} 12... Nbd7
{[%clk 0:02:44.6]} 13. f5 {[%clk 0:02:56.4]} 13... Bc4 {[%clk 0:02:44.5]} 14.
Rg1 {[%clk 0:02:52.9]} 14... b4 {[%clk 0:02:40.7]} 15. Nd5 {[%clk 0:02:49.7]}
15... Bxd5 {[%clk 0:02:37.8]} 16. exd5 {[%clk 0:02:50.6]} 16... e4 {[%clk
0:02:34.4]} 17. Be2 {[%clk 0:02:50.1]} 17... Rfc8 {[%clk 0:02:28.2]} 18. Rc1
{[%clk 0:02:38.1]} 18... Qb7 {[%clk 0:02:12.7]} 19. g4 {[%clk 0:02:24.3]} 19...
Nxd5 {[%clk 0:02:09.1]} 20. Bd4 {[%clk 0:02:03.9]} 20... Bg5 {[%clk 0:01:49.3]}
21. Rb1 {[%clk 0:01:51.4]} 21... a5 {[%clk 0:01:45.9]} 22. a4 {[%clk 0:01:39.4]}
22... Ne5 {[%clk 0:01:19.5]} 23. Rg3 {[%clk 0:00:54.2]} 23... Nf4 {[%clk
0:01:14.4]} 24. c4 {[%clk 0:00:47.6]} 24... Nxe2 {[%clk 0:00:46.6]} 25. Qxe2
{[%clk 0:00:45.7]} 25... Nxc4 {[%clk 0:00:44.5]} 26. Re1 {[%clk 0:00:30.3]}
26... d5 {[%clk 0:00:34.4]} 27. Nc5 {[%clk 0:00:20.3]} 27... Qe7 {[%clk
0:00:33.6]} 28. b3 {[%clk 0:00:20]} 28... Ne5 {[%clk 0:00:24.1]} 29. Qf2 {[%clk
0:00:16.3]} 29... Bh4 {[%clk 0:00:19.9]} 30. Ree3 {[%clk 0:00:14.5]} 30... Bxg3
{[%clk 0:00:19.1]} 31. Rxg3 {[%clk 0:00:15.4]} 31... Nf3 {[%clk 0:00:17.9]} 32.
f6 {[%clk 0:00:06.9]} 32... gxf6 {[%clk 0:00:14]} 33. g5 {[%clk 0:00:07.1]}
33... fxg5 {[%clk 0:00:12.4]} 34. Be3 {[%clk 0:00:06.2]} 34... f6 {[%clk
0:00:11.6]} 35. Rxf3 {[%clk 0:00:02]} 35... exf3 {[%clk 0:00:11.3]} 36. Qxf3
{[%clk 0:00:02.9]} 36... Rxc5 {[%clk 0:00:11.2]} 37. Qf5 {[%clk 0:00:01.5]}
37... Qxe3 {[%clk 0:00:07.1]} 0-1